bitfinex/quotes_SOLUSD_20230112
["timestamp","ask_amount","ask_price","bid_price","bid_amount"]
[1673532499249,20.0,16.363,16.342,20.0]
[1673532499458,45.84,16.365,16.342,20.0]
[1673532499646,45.84,16.365,16.343,109.4448]
[1673532499856,17.0,16.364,16.344,20.0]
[1673532500083,65.84,16.363,16.344,20.0]
[1673532500399,17.0,16.362,16.344,20.0]
[1673532500600,45.85,16.361,16.344,20.0]
[1673532500805,20.0,16.359,16.344,20.0]
[1673532501020,65.85,16.359,16.344,20.0]
[1673532501225,17.0,16.358,16.344,20.0]
[1673532501448,45.85,16.362,16.344,20.0]
[1673532501651,17.0,16.361,16.344,20.0]
[1673532502188,45.83,16.366,16.344,40.0]
[1673532502381,45.83,16.369,16.344,40.0]
[1673532502595,45.83,16.366,16.346,20.0]
[1673532502921,20.0,16.378,16.348,20.0]
[1673532502922,45.81,16.374,16.348,20.0]
[1673532503106,65.81,16.375,16.349,17.0]
[1673532503321,65.81,16.375,16.349,37.0]
[1673532503532,50.0,16.35,16.349,37.0]
[1673532503749,65.81,16.375,16.349,37.0]
[1673532503964,65.81,16.375,16.35,111.317]
[1673532504182,72.30401,16.375,16.351,37.0]
[1673532504371,260.50401,16.375,16.351,37.0]
[1673532504578,21.16,16.37,16.336,20.0]
[1673532504792,240.52401,16.369,16.336,20.0]
[1673532505016,20.0,16.368,16.336,20.0]
[1673532505220,45.83,16.367,16.342,111.317]
[1673532505634,20.0,16.366,16.343,20.0]
[1673532505846,45.84,16.365,16.343,20.0]
[1673532506373,112.2535,16.371,16.343,20.0]
[1673532506801,112.2535,16.371,16.344,18.92]
[1673532507014,112.2535,16.371,16.345,40.0]
[1673532507231,188.2,16.369,16.346,17.0]
[1673532507440,45.82,16.37,16.346,17.0]
[1673532507441,234.03,16.368,16.346,17.0]
[1673532507751,234.03,16.368,16.342,111.317]
[1673532508066,20.0,16.367,16.342,111.317]
[1673532508281,188.2,16.365,16.342,111.317]
[1673532508590,62.84,16.364,16.343,20.0]
[1673532508917,45.84,16.364,16.343,20.0]
[1673532509101,45.84,16.365,16.343,20.0]
[1673532509312,17.0,16.364,16.343,20.0]
[1673532509533,45.84,16.363,16.343,20.0]
[1673532509748,45.83,16.366,16.343,20.0]
[1673532509954,17.0,16.362,16.342,111.317]
[1673532510152,45.85,16.361,16.343,20.0]
[1673532510361,17.0,16.36,16.343,20.0]
[1673532510571,188.2,16.358,16.328,20.0]
[1673532510794,20.0,16.356,16.336,110.2195]
[1673532510988,45.87,16.355,16.336,110.2195]
[1673532511202,37.0,16.354,16.336,110.2195]
[1673532511413,45.87,16.353,16.336,110.2195]
[1673532512257,45.87,16.353,16.328,20.0]
[1673532512470,20.0,16.351,16.33,20.0]
[1673532512682,17.0,16.35,16.33,20.0]
[1673532513006,20.0,16.349,16.33,20.0]
[1673532513196,17.0,16.348,16.33,20.0]
[1673532513618,17.0,16.348,16.342,20.0]
[1673532513827,45.87,16.353,16.342,20.0]
[1673532514471,45.87,16.355,16.342,20.0]
[1673532515535,234.05,16.359,16.342,20.0]
[1673532515720,20.0,16.358,16.342,20.0]
[1673532516052,188.2,16.356,16.342,20.0]
[1673532516272,45.87,16.355,16.342,20.0]
[1673532516489,45.86,16.357,16.342,20.0]
[1673532516688,17.0,16.356,16.342,20.0]
[1673532516891,65.87,16.355,16.342,20.0]
[1673532517111,17.0,16.354,16.342,20.0]
[1673532517435,45.85,16.361,16.343,17.0]
[1673532517620,188.2,16.366,16.344,20.0]
[1673532517828,20.0,16.363,16.345,17.0]
[1673532518043,45.85,16.362,16.346,20.0]
[1673532518247,188.2,16.361,16.33,40.97]
[1673532518458,188.2,16.359,16.331,109.8552]
[1673532518666,120.34391,16.362,16.331,109.8552]
[1673532518667,188.2,16.357,16.331,109.8552]
[1673532518878,65.86,16.356,16.332,20.0]
[1673532519084,254.06,16.356,16.332,20.0]
[1673532519294,254.06,16.356,16.341,20.87482021]
[1673532519509,17.0,16.355,16.341,20.87482021]
[1673532519722,45.87,16.354,16.341,20.87482021]
[1673532519930,17.0,16.353,16.341,20.87482021]
[1673532520371,65.87,16.352,16.341,20.87482021]
[1673532520559,17.0,16.351,16.341,20.87482021]
[1673532520771,45.88,16.35,16.341,20.87482021]
[1673532520990,45.88,16.35,16.342,20.0]
[1673532521403,45.87,16.355,16.342,20.0]
[1673532521628,251.07,16.355,16.342,20.0]
[1673532521842,20.0,16.354,16.342,20.0]
[1673532522059,20.0,16.351,16.342,20.0]
[1673532522378,17.0,16.35,16.342,20.0]
[1673532523618,17.0,16.351,16.342,20.0]
[1673532524268,45.87,16.353,16.342,20.0]
[1673532524482,45.86,16.358,16.342,20.0]
[1673532524678,20.0,16.358,16.343,20.0]
[1673532524884,45.86,16.357,16.344,20.0]
[1673532525307,234.06,16.357,16.344,20.0]
[1673532525744,188.2,16.356,16.343,20.0]
[1673532525933,234.07,16.355,16.344,20.0]
[1673532526145,188.2,16.355,16.342,20.0]
[1673532526354,188.2,16.353,16.342,20.0]
[1673532526571,17.0,16.352,16.342,20.0]
[1673532526884,20.0,16.351,16.342,20.0]
[1673532527092,45.88,16.35,16.333,20.0]
[1673532527316,45.86,16.358,16.333,20.0]
[1673532527630,20.0,16.357,16.334,20.0]
[1673532527845,45.86,16.356,16.334,20.0]
[1673532528039,45.86,16.356,16.333,20.0]
[1673532528251,188.2,16.355,16.333,20.0]
[1673532528590,45.87,16.354,16.333,20.0]
[1673532528771,20.0,16.359,16.334,20.0]
[1673532528772,45.85,16.359,16.334,20.0]
[1673532529099,45.85,16.36,16.335,20.0]
[1673532529314,188.2,16.36,16.335,20.0]
[1673532529526,137.7441,16.367,16.335,20.0]
[1673532529527,188.2,16.358,16.335,20.0]
[1673532529838,188.2,16.356,16.335,20.0]
[1673532530152,234.07,16.355,16.335,20.0]
[1673532530368,17.0,16.354,16.335,20.0]
[1673532530564,45.87,16.353,16.336,20.0]
[1673532530776,17.0,16.354,16.337,37.0]
[1673532530985,17.0,16.352,16.337,20.0]
[1673532531197,17.0,16.354,16.337,20.0]
[1673532531396,45.87,16.353,16.337,20.0]
[1673532531625,17.0,16.352,16.337,20.0]
[1673532531834,45.86,16.358,16.337,20.0]
[1673532532043,45.85,16.361,16.337,20.0]
[1673532532474,45.85,16.361,16.338,17.0]
[1673532532674,45.85,16.361,16.34,20.0]
[1673532532887,45.85,16.361,16.341,17.0]
[1673532533093,45.85,16.361,16.342,20.0]
[1673532533309,45.85,16.361,16.343,17.0]
[1673532533507,45.85,16.361,16.344,20.0]
[1673532533714,45.84,16.365,16.345,37.0]
[1673532533943,45.83,16.368,16.345,37.0]
[1673532534161,45.82,16.37,16.345,17.0]
[1673532534367,45.82,16.37,16.346,20.0]
[1673532534563,45.82,16.37,16.348,20.0]
[1673532534979,45.82,16.37,16.35,21.16]
[1673532535193,45.82,16.37,16.351,20.0]
[1673532535508,20.0,16.376,16.353,20.0]
[1673532535823,45.81,16.375,16.354,20.0]
[1673532536041,45.8,16.379,16.354,37.0]
[1673532536241,45.8,16.379,16.36,21.16]
[1673532536450,42.8,16.379,16.361,17.0]
[1673532536661,208.2,16.378,16.361,17.0]
[1673532536986,45.8,16.377,16.356,20.0]
[1673532537197,45.8,16.377,16.357,17.0]
[1673532537728,45.8,16.379,16.358,20.0]
[1673532537918,45.8,16.379,16.359,17.0]
[1673532538131,45.8,16.379,16.36,20.0]
[1673532538344,234.0,16.379,16.361,17.0]
[1673532538567,20.0,16.378,16.362,20.0]
[1673532538769,188.2,16.376,16.362,20.0]
[1673532538994,251.01,16.375,16.362,20.0]
[1673532539303,234.01,16.375,16.359,20.0]
[1673532539498,20.0,16.373,16.354,20.0]
[1673532539708,188.2,16.371,16.35,20.0]
[1673532539919,45.82,16.37,16.35,20.0]
[1673532540359,17.0,16.369,16.35,20.0]
[1673532540548,45.83,16.368,16.35,20.0]
[1673532540764,17.0,16.367,16.35,20.0]
[1673532541076,45.83,16.366,16.35,20.0]
[1673532541287,17.0,16.367,16.35,20.0]
[1673532541516,45.83,16.366,16.35,43.54]
[1673532541713,45.81,16.374,16.35,43.54]
[1673532541927,45.81,16.374,16.351,17.0]
[1673532542250,45.8,16.378,16.351,51.57516069]
[1673532542459,45.8,16.379,16.353,20.0]
[1673532542661,45.8,16.379,16.354,17.0]
[1673532542989,45.8,16.379,16.355,40.0]
[1673532543176,45.8,16.379,16.356,17.0]
[1673532543386,45.8,16.379,16.357,20.0]
[1673532543592,45.8,16.379,16.36,23.68]
[1673532543822,45.78,16.386,16.361,20.0]
[1673532544045,0.42166721,16.385,16.361,37.0]
[1673532544226,45.78,16.384,16.361,37.0]
[1673532544454,45.78,16.384,16.362,20.0]
[1673532544665,45.78,16.384,16.363,17.0]
[1673532544877,45.78,16.384,16.364,20.0]
[1673532545188,45.78,16.384,16.365,17.0]
[1673532545389,17.0,16.383,16.367,20.0]
[1673532545608,45.79,16.382,16.368,20.0]
[1673532545923,17.0,16.381,16.368,20.0]
[1673532546242,45.78,16.384,16.369,17.0]
[1673532546554,45.78,16.384,16.37,20.0]
[1673532546756,0.42166721,16.385,16.371,17.0]
[1673532547085,0.42166721,16.385,16.372,20.0]
[1673532547273,0.42166721,16.385,16.372,40.0]
[1673532548329,0.42166721,16.385,16.373,17.0]
[1673532548535,0.42166721,16.385,16.374,20.0]
[1673532548750,0.42166721,16.385,16.375,17.0]
[1673532548973,0.42166721,16.385,16.376,20.0]
[1673532549504,0.42166721,16.385,16.378,20.0]
[1673532549812,0.42166721,16.385,16.379,20.0]
[1673532550223,0.42166721,16.385,16.38,17.0]
[1673532550547,95.29,16.41,16.38,17.0]
[1673532550548,45.73,16.404,16.382,20.0]
[1673532550762,23.81,16.41,16.382,20.0]
[1673532550763,45.72,16.406,16.383,20.0]
[1673532550946,45.72,16.406,16.39,23.65]
[1673532551163,157.8653,16.415,16.391,20.0]
[1673532551489,157.8653,16.415,16.393,20.0]
[1673532551490,20.0,16.414,16.393,20.0]
[1673532551700,45.7,16.413,16.394,37.0]
[1673532552107,188.2,16.412,16.394,37.0]
[1673532552316,20.0,16.409,16.394,20.0]
[1673532552525,45.72,16.408,16.386,20.0]
[1673532553077,20.0,16.412,16.391,20.0]
[1673532553279,45.71,16.411,16.391,40.0]
[1673532553602,45.71,16.411,16.392,54.7873035]
[1673532553799,110.246,16.416,16.393,17.0]
[1673532553800,45.7,16.415,16.393,17.0]
[1673532554021,110.246,16.416,16.394,20.0]
[1673532554220,65.7,16.415,16.39,23.95]
[1673532554541,253.9,16.415,16.39,23.95]
[1673532555151,17.0,16.414,16.39,23.95]
[1673532555483,20.0,16.412,16.39,23.95]
[1673532555697,23.76,16.41,16.385,34.7873035]
[1673532555902,250.91,16.409,16.38,23.83]
[1673532556110,250.91,16.409,16.371,320.1744425]
[1673532556111,6.49401,16.408,16.373,112.5873]
[1673532556323,20.0,16.406,16.374,20.0]
[1673532556639,45.73,16.405,16.374,52.53397016]
[1673532556857,17.0,16.404,16.374,52.53397016]
[1673532557048,188.2,16.402,16.373,112.5873]
[1673532557378,257.43401,16.401,16.373,112.5873]
[1673532557592,188.2,16.399,16.373,112.5873]
[1673532557806,188.2,16.397,16.37,116.82875577]
[1673532557996,52.24401,16.396,16.367,34.57516069]
[1673532558204,45.75,16.396,16.363,119.707]
[1673532558417,45.75,16.397,16.364,26.52595]
[1673532558620,119.3264,16.398,16.37,21.14]
[1673532559254,20.0,16.397,16.37,21.14]
[1673532559469,62.75,16.396,16.37,21.14]
[1673532559889,62.75,16.396,16.366,20.0]
[1673532560103,62.75,16.396,16.367,20.0]
[1673532560326,20.0,16.395,16.367,20.0]
[1673532560517,17.0,16.394,16.367,20.0]
[1673532560946,20.0,16.393,16.367,20.0]
[1673532561175,17.0,16.392,16.367,20.0]
[1673532561359,20.0,16.391,16.367,20.0]
[1673532561564,17.0,16.39,16.367,20.0]
[1673532561781,17.0,16.39,16.365,20.0]
[1673532562201,17.0,16.39,16.366,20.0]
[1673532562746,17.0,16.39,16.367,20.0]
[1673532564215,188.2,16.393,16.368,20.0]
[1673532564418,188.2,16.395,16.369,20.0]
[1673532564629,188.2,16.395,16.37,20.0]
[1673532564828,188.2,16.395,16.371,17.0]
[1673532565043,20.0,16.392,16.372,20.0]
[1673532565263,20.0,16.392,16.373,37.0]
[1673532565477,17.0,16.391,16.373,37.0]
[1673532565688,17.0,16.392,16.374,40.0]
[1673532566000,188.2,16.393,16.374,40.0]
[1673532566001,188.2,16.393,16.374,20.0]
[1673532566193,20.0,16.392,16.374,20.0]
[1673532566623,21.03,16.39,16.368,20.0]
[1673532566841,21.03,16.39,16.353,50.8832]
[1673532566842,188.2,16.388,16.362,117.7376]
[1673532567054,188.2,16.386,16.362,117.7376]
[1673532567376,298.1125,16.389,16.363,20.0]
[1673532567766,109.9125,16.389,16.364,7.042]
[1673532568197,109.9125,16.389,16.366,20.0]
[1673532568414,109.9125,16.389,16.367,49.58]
[1673532568626,298.1125,16.389,16.368,20.0]
[1673532568942,298.1125,16.389,16.369,18.05]
[1673532569130,20.0,16.387,16.37,20.0]
[1673532569341,17.0,16.386,16.37,20.0]
[1673532569774,17.0,16.386,16.365,20.0]
[1673532569983,17.0,16.386,16.367,20.0]
[1673532570205,17.0,16.386,16.368,45.21]
[1673532570844,20.0,16.385,16.368,20.0]
[1673532571161,20.0,16.383,16.364,20.0]
[1673532571378,17.0,16.382,16.364,20.0]
[1673532571900,17.0,16.382,16.363,25.63]
[1673532572397,20.0,16.381,16.355,27.01]
[1673532572603,233.96,16.394,16.356,40.95036069]
[1673532572814,20.0,16.388,16.357,47.23]
[1673532573239,20.0,16.388,16.358,20.0]
[1673532573465,20.0,16.388,16.359,37.17]
[1673532573674,20.0,16.388,16.36,37.0]
[1673532573891,17.0,16.386,16.361,174.4523]
[1673532574084,17.0,16.386,16.362,37.0]
[1673532574295,20.0,16.385,16.363,40.15]
[1673532574512,208.2,16.385,16.363,40.15]
[1673532574722,17.0,16.384,16.355,40.18]
[1673532574936,17.0,16.384,16.356,20.0]
[1673532575132,20.0,16.388,16.36,21.07]
[1673532575357,109.9125,16.389,16.361,42.63]
[1673532575888,20.0,16.388,16.363,20.0]
[1673532576072,20.0,16.388,16.365,20.0]
[1673532576287,20.0,16.388,16.364,190.9914]
[1673532576288,20.0,16.388,16.366,45.83]
[1673532576498,6.49401,16.387,16.367,20.0]
[1673532576719,20.0,16.386,16.367,20.0]
[1673532577048,6.49401,16.385,16.367,20.0]
[1673532577233,6.49401,16.385,16.362,20.0]
[1673532577444,17.0,16.384,16.363,45.84]
[1673532577664,20.0,16.383,16.364,20.0]
[1673532577869,17.0,16.382,16.365,45.84]
[1673532578200,17.0,16.382,16.366,20.0]
[1673532578409,17.0,16.382,16.361,20.0]
[1673532578410,17.0,16.382,16.362,45.85]
[1673532578618,17.0,16.382,16.361,45.85]
[1673532579030,20.0,16.381,16.361,45.85]
[1673532579436,20.0,16.383,16.361,45.85]
[1673532580178,20.0,16.383,16.362,20.0]
[1673532580395,6.49401,16.382,16.362,20.0]
[1673532580605,6.49401,16.382,16.363,45.84]
[1673532580813,20.0,16.383,16.361,45.85]
[1673532581355,20.0,16.384,16.361,45.85]
[1673532581570,20.0,16.385,16.361,45.85]
[1673532581749,20.0,16.385,16.363,20.0]
[1673532581969,20.0,16.385,16.364,62.84]
[1673532582595,20.0,16.385,16.365,20.0]
[1673532582809,20.0,16.385,16.366,62.83]
[1673532583234,20.0,16.385,16.367,20.0]
[1673532583450,20.0,16.385,16.368,62.83]
[1673532583659,20.0,16.385,16.369,20.0]
[1673532583865,20.0,16.385,16.37,45.82]
[1673532584083,20.0,16.387,16.371,37.0]
[1673532584401,20.0,16.387,16.371,20.0]
[1673532584922,20.0,16.387,16.364,20.0]
[1673532585130,20.0,16.387,16.365,45.84]
[1673532585340,20.0,16.387,16.366,20.0]
[1673532585538,17.0,16.386,16.365,45.84]
[1673532585749,6.49401,16.385,16.361,45.85]
[1673532585954,20.0,16.383,16.361,154.2635]
[1673532586503,20.0,16.381,16.361,154.2635]
[1673532586812,116.0,16.38,16.361,154.2635]
[1673532587029,20.0,16.379,16.361,154.2635]
[1673532587242,208.2,16.379,16.361,45.85]
[1673532587428,17.0,16.378,16.361,45.85]
[1673532587642,20.0,16.377,16.361,45.85]
[1673532587963,17.0,16.376,16.357,20.0]
[1673532588182,17.0,16.376,16.358,45.86]
[1673532588795,17.0,16.376,16.359,17.0]
[1673532589008,17.0,16.376,16.36,45.85]
[1673532589432,17.0,16.376,16.357,45.86]
[1673532589644,23.49401,16.376,16.356,45.86]
[1673532589856,6.49401,16.375,16.351,45.88]
[1673532590062,188.2,16.373,16.351,45.88]
[1673532590293,6.49401,16.372,16.351,45.88]
[1673532590597,23.49401,16.372,16.351,45.88]
[1673532591001,20.0,16.371,16.351,45.88]
[1673532591207,20.0,16.369,16.351,45.88]
[1673532591427,17.0,16.368,16.351,45.88]
[1673532592054,17.0,16.368,16.346,45.89]
[1673532592055,26.49401,16.367,16.346,45.89]
[1673532592381,26.49401,16.367,16.34,23.55]
[1673532592382,188.2,16.365,16.34,23.55]
[1673532592593,188.2,16.363,16.336,107.5247]
[1673532592817,188.2,16.361,16.336,107.5247]
[1673532593000,188.2,16.359,16.336,107.5247]
[1673532593216,188.2,16.357,16.33,23.74]
[1673532593427,188.2,16.355,16.33,23.74]
[1673532593641,188.2,16.353,16.33,23.74]
[1673532593853,62.87,16.352,16.33,23.74]
[1673532594180,113.6418,16.359,16.33,23.74]
[1673532594181,65.86,16.357,16.34,23.49]
[1673532594490,45.85,16.359,16.34,23.49]
[1673532594681,45.85,16.361,16.341,20.0]
[1673532594894,45.85,16.361,16.34,23.49]
[1673532595112,20.0,16.36,16.34,23.49]
[1673532595312,45.85,16.359,16.34,23.49]
[1673532595532,45.85,16.361,16.341,17.0]
[1673532595743,45.84,16.365,16.342,20.0]
[1673532596062,45.84,16.365,16.343,17.0]
[1673532596256,45.84,16.365,16.343,37.0]
[1673532596703,45.85,16.361,16.344,20.0]
[1673532596914,45.85,16.361,16.345,20.0]
[1673532597973,37.0,16.36,16.345,20.0]
[1673532598172,37.0,16.36,16.342,20.0]
[1673532598615,20.0,16.36,16.343,17.0]
[1673532598800,20.0,16.36,16.342,40.0]
[1673532599017,20.0,16.36,16.342,20.0]
[1673532599647,234.05,16.359,16.331,45.93]
[1673532599862,20.0,16.357,16.331,116.1123]
[1673532600074,20.0,16.355,16.331,116.1123]
[1673532600292,45.87,16.354,16.331,116.1123]
[1673532600501,62.87,16.354,16.331,116.1123]
[1673532601026,45.87,16.354,16.333,20.0]
[1673532601230,45.85,16.359,16.333,65.93]
[1673532601436,52.34401,16.359,16.333,43.43]
[1673532601661,52.34401,16.359,16.332,23.970046]
[1673532601868,20.0,16.357,16.332,23.970046]
[1673532602193,188.2,16.355,16.332,23.970046]
[1673532602389,20.0,16.353,16.332,23.970046]
[1673532602589,69.36401,16.352,16.332,23.970046]
[1673532602802,20.0,16.351,16.332,23.970046]
[1673532603113,324.9322,16.353,16.332,23.970046]
[1673532603114,45.88,16.35,16.332,23.970046]
[1673532603338,136.7322,16.353,16.332,23.970046]
[1673532603956,324.9322,16.353,16.332,23.970046]
[1673532604291,188.2,16.351,16.33,118.48]
[1673532604473,240.57401,16.35,16.33,23.6]
[1673532604688,23.49401,16.349,16.324,118.3603]
[1673532604898,188.2,16.347,16.324,118.3603]
[1673532605111,188.2,16.345,16.324,118.3603]
[1673532605334,188.2,16.343,16.324,117.8603]
[1673532605654,69.39401,16.342,16.323,24.480025]
[1673532605966,26.49401,16.341,16.323,24.480025]
[1673532606286,188.2,16.339,16.323,24.480025]
[1673532606620,257.60401,16.338,16.323,24.480025]
[1673532606792,6.49401,16.337,16.323,24.480025]
[1673532607001,188.2,16.335,16.323,24.480025]
[1673532607217,52.41401,16.334,16.323,24.480025]
[1673532607431,6.49401,16.333,16.323,10.977325]
[1673532607635,188.2,16.331,16.304,40.67]
[1673532607870,188.2,16.331,16.3,118.82]
[1673532607871,284.12401,16.33,16.301,38.12]
[1673532608177,6.49401,16.329,16.292,20.0]
[1673532608386,188.2,16.327,16.275,25.7228133]
[1673532608594,65.94,16.328,16.275,25.7228133]
[1673532608595,62.44,16.318,16.275,25.7228133]
[1673532608798,6.49401,16.316,16.275,23.2228133]
[1673532609115,6.49401,16.316,16.276,24.552559]
[1673532609116,188.2,16.314,16.276,24.552559]
[1673532609334,52.47401,16.313,16.276,65.7953766]
[1673532609520,194.69401,16.312,16.276,59.26197883]
[1673532609731,188.2,16.31,16.276,59.26197883]
[1673532610048,188.2,16.308,16.276,24.552559]
[1673532610265,188.2,16.306,16.276,24.552559]
[1673532610481,52.49401,16.307,16.276,24.552559]
[1673532610482,250.64,16.303,16.276,24.552559]
[1673532610673,52.50401,16.302,16.277,20.0]
[1673532610882,52.50401,16.302,16.278,32.98]
[1673532611096,17.0,16.301,16.281,20.0]
[1673532611312,17.0,16.301,16.282,34.18]
[1673532611510,23.72,16.31,16.282,72.83275316]
[1673532611727,6.49401,16.309,16.283,98.85574232]
[1673532612040,23.55,16.32,16.284,104.75907565]
[1673532612256,6.49401,16.319,16.29,118.6]
[1673532612462,6.49401,16.319,16.291,53.66]
[1673532612671,6.49401,16.319,16.291,35.43632249]
[1673532612672,20.0,16.317,16.291,35.43632249]
[1673532612896,23.49,16.31,16.291,35.43632249]
[1673532613101,52.48401,16.309,16.281,30.07]
[1673532613305,6.49401,16.308,16.282,35.43632249]
[1673532613517,46.0,16.307,16.282,35.43632249]
[1673532613729,43.49401,16.306,16.282,35.43632249]
[1673532614044,23.6,16.3,16.273,108.0503]
[1673532614252,52.51401,16.299,16.273,108.0503]
[1673532614473,6.49401,16.298,16.276,62.56288149]
[1673532614787,20.0,16.296,16.276,62.56288149]
[1673532614979,26.49401,16.296,16.276,24.552559]
[1673532615190,17.0,16.295,16.276,62.56288149]
[1673532615620,20.0,16.294,16.276,62.56288149]
[1673532615820,17.0,16.293,16.276,62.56288149]
[1673532616358,23.49401,16.293,16.276,62.56288149]
[1673532616681,69.53401,16.293,16.276,62.56288149]
[1673532616899,46.01,16.304,16.276,62.56288149]
[1673532617102,26.49401,16.304,16.277,20.0]
[1673532617424,52.50401,16.303,16.28,23.72]
[1673532617612,20.0,16.301,16.28,23.72]
[1673532617819,69.51,16.3,16.278,38.01032249]
[1673532618035,69.51,16.3,16.276,24.552559]
[1673532618036,6.49401,16.299,16.276,24.552559]
[1673532618243,188.2,16.297,16.276,24.552559]
[1673532618466,20.0,16.294,16.276,24.552559]
[1673532618673,194.69401,16.293,16.276,24.552559]
[1673532618887,23.49401,16.292,16.276,24.552559]
[1673532619515,52.54401,16.291,16.276,24.552559]
[1673532619731,37.0,16.29,16.276,24.552559]
[1673532619923,46.05,16.289,16.276,24.552559]
[1673532620136,17.0,16.288,16.265,136.3086]
[1673532620462,17.0,16.29,16.265,20.0]
[1673532620670,46.04,16.293,16.26,95.0]
[1673532620866,46.04,16.293,16.229,118.52579131]
[1673532620867,63.96842968,16.289,16.262,111.96426415]
[1673532621077,66.05,16.288,16.25,24.560634]
[1673532621282,4.96527241,16.28,16.25,142.990634]
[1673532621491,6.49401,16.279,16.25,119.500634]
[1673532621720,6.49401,16.279,16.251,20.0]
[1673532621928,23.86,16.3,16.251,49.89219107]
[1673532622250,52.52401,16.298,16.252,29.89219107]
[1673532622452,6.49401,16.297,16.253,122.47312]
[1673532622667,46.03,16.296,16.27,23.55]
[1673532622880,6.49401,16.295,16.271,20.0]
[1673532623071,46.04,16.294,16.26,23.66]
[1673532623282,6.49401,16.293,16.26,94.8]
[1673532623498,46.04,16.292,16.26,94.8]
[1673532623708,6.49401,16.292,16.261,20.0]
[1673532624366,6.49401,16.291,16.261,20.0]
[1673532624676,6.49401,16.291,16.271,20.0]
[1673532624865,6.49401,16.291,16.272,17.0]
[1673532625072,46.02,16.299,16.272,17.0]
[1673532625286,23.86,16.3,16.273,20.0]
[1673532625287,6.49401,16.298,16.273,20.0]
[1673532625493,20.0,16.296,16.273,20.0]
[1673532625735,52.52401,16.295,16.273,20.0]
[1673532625939,52.52401,16.295,16.271,20.0]
[1673532625940,52.52401,16.295,16.272,20.0]
[1673532626144,6.49401,16.294,16.273,20.0]
[1673532626851,6.49401,16.294,16.274,17.0]
[1673532627012,6.49401,16.294,16.275,20.0]
[1673532627547,20.0,16.292,16.275,20.0]
[1673532627754,52.54401,16.291,16.271,20.0]